[Event "Titled Tuesday Blitz May 9 Late 2023"]
[White "Bryant, Todd"]
[Black "FoxOnTheRun97"]
[WhiteFideId "2031299"]
[WhiteElo "2370"]
[BlackElo "2519"]
[Result "0-1"]
[Round "05"]
[TimeControl "180+2"]
[Date "2023.05.09"]
[WhiteClock "0:00:03"]
[BlackClock "0:00:07"]

1. e4 {[%clk 0:03:00]}  c6 {[%clk 0:03:00]} 2. d4 {[%clk 0:03:00]}  d5 {[%clk 0:03:00]} 3. f3 {[%clk 0:03:00]}  e6 {[%clk 0:02:57]} 4. Nc3 {[%clk 0:03:00]}  Nf6 {[%clk 0:02:56]} 5. a3 {[%clk 0:02:59]}  Qb6 {[%clk 0:02:50]} 6. Be3 {[%clk 0:02:53]}  Be7 {[%clk 0:02:43]} 7. Bd3 {[%clk 0:02:48]}  a5 {[%clk 0:02:35]} 8. Nh3 {[%clk 0:02:39]}  a4 {[%clk 0:02:30]} 9. Qc1 {[%clk 0:02:22]}  c5 {[%clk 0:02:13]} 10. e5 {[%clk 0:01:49]}  Nfd7 {[%clk 0:02:01]} 11. dxc5 {[%clk 0:01:35]}  Bxc5 {[%clk 0:01:57]} 12. Bxc5 {[%clk 0:01:35]}  Qxc5 {[%clk 0:01:51]} 13. Qg5 {[%clk 0:01:26]}  h6 {[%clk 0:01:40]} 14. Qxg7 {[%clk 0:01:07]}  Qe3+ {[%clk 0:01:40]} 15. Kf1 {[%clk 0:01:07]}  Qxe5 {[%clk 0:01:41]} 16. Qxe5 {[%clk 0:00:50]}  Nxe5 {[%clk 0:01:42]} 17. Bb5+ {[%clk 0:00:50]}  Bd7 {[%clk 0:01:38]} 18. Re1 {[%clk 0:00:51]}  Ng6 {[%clk 0:01:06]} 19. Kf2 {[%clk 0:00:51]}  Ra5 {[%clk 0:00:58]} 20. Bd3 {[%clk 0:00:39]}  Ne7 {[%clk 0:00:48]} 21. Nf4 {[%clk 0:00:33]}  Nbc6 {[%clk 0:00:45]} 22. Nh5 {[%clk 0:00:29]}  Kd8 {[%clk 0:00:26]} 23. Nb5 {[%clk 0:00:25]}  Nc8 {[%clk 0:00:22]} 24. Nf6 {[%clk 0:00:22]}  N6e7 {[%clk 0:00:16]} 25. Nxd7 {[%clk 0:00:17]}  Kxd7 {[%clk 0:00:17]} 26. g4 {[%clk 0:00:17]}  Nd6 {[%clk 0:00:18]} 27. Nxd6 {[%clk 0:00:13]}  Kxd6 {[%clk 0:00:19]} 28. h4 {[%clk 0:00:13]}  Rc5 {[%clk 0:00:18]} 29. g5 {[%clk 0:00:12]}  hxg5 {[%clk 0:00:18]} 30. hxg5 {[%clk 0:00:12]}  Rxh1 {[%clk 0:00:18]} 31. Rxh1 {[%clk 0:00:13]}  Nc6 {[%clk 0:00:15]} 32. f4 {[%clk 0:00:11]}  Nd4 {[%clk 0:00:13]} 33. Rh7 {[%clk 0:00:09]}  Rc7 {[%clk 0:00:10]} 34. g6 {[%clk 0:00:07]}  fxg6 {[%clk 0:00:09]} 35. Rxc7 {[%clk 0:00:08]}  Kxc7 {[%clk 0:00:09]} 36. Bxg6 {[%clk 0:00:09]}  Kd6 {[%clk 0:00:08]} 37. Ke3 {[%clk 0:00:09]}  Kc5 {[%clk 0:00:07]} 38. c3 {[%clk 0:00:08]}  Nb3 {[%clk 0:00:06]} 39. Bf7 {[%clk 0:00:07]}  Kd6 {[%clk 0:00:05]} 40. Bg8 {[%clk 0:00:08]}  Na5 {[%clk 0:00:05]} 41. Kd3 {[%clk 0:00:07]}  Nc4 {[%clk 0:00:06]} 42. Kc2 {[%clk 0:00:07]}  Ne3+ {[%clk 0:00:05]} 43. Kd3 {[%clk 0:00:07]}  Ng2 {[%clk 0:00:05]} 44. c4 {[%clk 0:00:04]}  Nxf4+ {[%clk 0:00:04]} 45. Kc3 {[%clk 0:00:04]}  Kc5 {[%clk 0:00:04]} 46. cxd5 {[%clk 0:00:04]}  exd5 {[%clk 0:00:04]} 47. b3 {[%clk 0:00:05]}  d4+ {[%clk 0:00:04]} 48. Kc2 {[%clk 0:00:04]}  axb3+ {[%clk 0:00:03]} 49. Kxb3 {[%clk 0:00:05]}  Nd5 {[%clk 0:00:03]} 50. Kc2 {[%clk 0:00:05]}  Ne3+ {[%clk 0:00:03]} 51. Kd3 {[%clk 0:00:05]}  Nd5 {[%clk 0:00:03]} 52. Bf7 {[%clk 0:00:05]}  Nb6 {[%clk 0:00:02]} 53. Bg8 {[%clk 0:00:05]}  Na4 {[%clk 0:00:03]} 54. Bf7 {[%clk 0:00:05]}  Nb2+ {[%clk 0:00:03]} 55. Kd2 {[%clk 0:00:05]}  Nc4+ {[%clk 0:00:04]} 56. Kc2 {[%clk 0:00:04]}  Nxa3+ {[%clk 0:00:04]} 57. Kb3 {[%clk 0:00:05]}  Nb5 {[%clk 0:00:04]} 58. Kc2 {[%clk 0:00:06]}  Nd6 {[%clk 0:00:05]} 59. Bg8 {[%clk 0:00:07]}  b5 {[%clk 0:00:05]} 60. Kd3 {[%clk 0:00:08]}  b4 {[%clk 0:00:05]} 61. Bb3 {[%clk 0:00:08]}  Nf5 {[%clk 0:00:04]} 62. Ke4 {[%clk 0:00:08]}  Ne3 {[%clk 0:00:04]} 63. Kd3 {[%clk 0:00:08]}  Nd5 {[%clk 0:00:04]} 64. Ba4 {[%clk 0:00:07]}  Nc3 {[%clk 0:00:03]} 65. Bb3 {[%clk 0:00:07]}  Nb1 {[%clk 0:00:01]} 66. Ba4 {[%clk 0:00:07]}  Na3 {[%clk 0:00:02]} 67. Bb3 {[%clk 0:00:07]}  Nb5 {[%clk 0:00:02]} 68. Bg8 {[%clk 0:00:07]}  Nc7 {[%clk 0:00:02]} 69. Bb3 {[%clk 0:00:07]}  Nd5 {[%clk 0:00:03]} 70. Ba4 {[%clk 0:00:08]}  Nf4+ {[%clk 0:00:01]} 71. Kd2 {[%clk 0:00:08]}  Kd5 {[%clk 0:00:02]} 72. Bb3+ {[%clk 0:00:08]}  Ke4 {[%clk 0:00:02]} 73. Bc4 {[%clk 0:00:05]}  d3 {[%clk 0:00:03]} 74. Bb5 {[%clk 0:00:04]}  Kd4 {[%clk 0:00:04]} 75. Ba6 {[%clk 0:00:04]}  b3 {[%clk 0:00:04]} 76. Kc1 {[%clk 0:00:03]}  Kc3 {[%clk 0:00:05]} 77. Bxd3 {[%clk 0:00:03]}  Nxd3+ {[%clk 0:00:05]} 78. Kb1 {[%clk 0:00:03]}  b2 {[%clk 0:00:05]} 79. Ka2 {[%clk 0:00:03]}  Kc2 {[%clk 0:00:05]} 80. Ka3 {[%clk 0:00:03]}  b1=Q {[%clk 0:00:06]} 81. Ka4 {[%clk 0:00:03]}  Qb4# {[%clk 0:00:07]} 0-1


[Site "https://www.chess.com"]

[Event "Titled Tuesday Blitz May 9 Late 2023"]
[White "Ng, Gary"]
[Black "Bambino Filho, Antonio Carlos"]
[WhiteFideId "2604914"]
[BlackFideId "2113163"]
[WhiteElo "2331"]
[BlackElo "2508"]
[Result "1-0"]
[Round "05"]
[TimeControl "180+2"]
[Date "2023.05.09"]
[WhiteClock "0:00:02"]
[BlackClock "0:00:06"]

1. d4 {[%clk 0:03:00]}  Nf6 {[%clk 0:02:59]} 2. Bf4 {[%clk 0:02:59]}  d5 {[%clk 0:02:58]} 3. e3 {[%clk 0:02:58]}  c5 {[%clk 0:02:57]} 4. dxc5 {[%clk 0:02:59]}  Nc6 {[%clk 0:02:56]} 5. Bb5 {[%clk 0:03:00]}  g6 {[%clk 0:02:49]} 6. c3 {[%clk 0:02:57]}  Bg7 {[%clk 0:02:45]} 7. Nd2 {[%clk 0:02:54]}  O-O {[%clk 0:02:32]} 8. Ngf3 {[%clk 0:02:54]}  Nh5 {[%clk 0:02:25]} 9. Bg5 {[%clk 0:02:53]}  h6 {[%clk 0:02:25]} 10. Bh4 {[%clk 0:02:53]}  g5 {[%clk 0:02:23]} 11. Bg3 {[%clk 0:02:53]}  Nxg3 {[%clk 0:02:21]} 12. hxg3 {[%clk 0:02:54]}  e5 {[%clk 0:02:21]} 13. Bxc6 {[%clk 0:02:49]}  bxc6 {[%clk 0:02:22]} 14. b4 {[%clk 0:02:48]}  a5 {[%clk 0:02:05]} 15. O-O {[%clk 0:02:45]}  axb4 {[%clk 0:02:03]} 16. cxb4 {[%clk 0:02:45]}  Ba6 {[%clk 0:02:03]} 17. Re1 {[%clk 0:02:45]}  f5 {[%clk 0:01:54]} 18. Nb3 {[%clk 0:02:41]}  Bb5 {[%clk 0:01:44]} 19. Na5 {[%clk 0:02:36]}  Rxa5 {[%clk 0:01:26]} 20. bxa5 {[%clk 0:02:37]}  Qxa5 {[%clk 0:01:27]} 21. a4 {[%clk 0:02:28]}  Bc4 {[%clk 0:01:19]} 22. Rb1 {[%clk 0:02:25]}  Ra8 {[%clk 0:01:12]} 23. Rb7 {[%clk 0:02:21]}  Qxc5 {[%clk 0:01:06]} 24. Nd2 {[%clk 0:01:36]}  Ba6 {[%clk 0:01:00]} 25. Rd7 {[%clk 0:01:18]}  Rb8 {[%clk 0:00:51]} 26. Qh5 {[%clk 0:01:18]}  Qf8 {[%clk 0:00:46]} 27. Qg6 {[%clk 0:01:10]}  Qf6 {[%clk 0:00:45]} 28. Rxg7+ {[%clk 0:00:41]}  Qxg7 {[%clk 0:00:44]} 29. Qxc6 {[%clk 0:00:42]}  Qb7 {[%clk 0:00:27]} 30. Qxh6 {[%clk 0:00:36]}  Bd3 {[%clk 0:00:17]} 31. Qxg5+ {[%clk 0:00:30]}  Kf7 {[%clk 0:00:17]} 32. Qh5+ {[%clk 0:00:30]}  Kg7 {[%clk 0:00:17]} 33. Nf3 {[%clk 0:00:26]}  Qc7 {[%clk 0:00:17]} 34. Ng5 {[%clk 0:00:21]}  Qe7 {[%clk 0:00:12]} 35. Rc1 {[%clk 0:00:14]}  Rb7 {[%clk 0:00:12]} 36. Rc8 {[%clk 0:00:12]}  f4 {[%clk 0:00:07]} 37. Qh8+ {[%clk 0:00:09]}  Kg6 {[%clk 0:00:07]} 38. Rg8+ {[%clk 0:00:09]}  Kf5 {[%clk 0:00:07]} 39. gxf4 {[%clk 0:00:08]}  exf4 {[%clk 0:00:07]} 40. Rf8+ {[%clk 0:00:07]}  Kg4 {[%clk 0:00:05]} 41. f3+ {[%clk 0:00:05]}  Kxg5 {[%clk 0:00:06]} 42. Rg8+ {[%clk 0:00:04]}  Bg6 {[%clk 0:00:06]} 43. exf4+ {[%clk 0:00:04]}  Kxf4 {[%clk 0:00:06]} 44. Rxg6 {[%clk 0:00:03]}  Rb1+ {[%clk 0:00:05]} 45. Kh2 {[%clk 0:00:03]}  Qe5 {[%clk 0:00:06]} 46. Qh6+ {[%clk 0:00:03]}  Kf5+ {[%clk 0:00:05]} 47. g3 {[%clk 0:00:01]}  Rb2+ {[%clk 0:00:06]} 48. Kh3 {[%clk 0:00:02]}  Qe1 {[%clk 0:00:06]} 49. Rg5# {[%clk 0:00:02]} 1-0


[Site "https://www.chess.com"]

[Event "Titled Tuesday Blitz May 9 Late 2023"]
[White "Karas, Marek"]
[Black "Vaglio Munoz, Jaime"]
[WhiteFideId "14928558"]
[BlackFideId "6500145"]
[WhiteElo "2233"]
[BlackElo "2199"]
[Result "1-0"]
[Round "05"]
[TimeControl "180+2"]
[Date "2023.05.09"]
[WhiteClock "0:00:07"]
[BlackClock "0:00:20"]

1. c4 {[%clk 0:02:59]}  c6 {[%clk 0:02:59]} 2. Nf3 {[%clk 0:02:59]}  b5 {[%clk 0:02:58]} 3. b3 {[%clk 0:02:47]}  d5 {[%clk 0:02:57]} 4. e3 {[%clk 0:02:46]}  a6 {[%clk 0:02:51]} 5. Bb2 {[%clk 0:02:46]}  Bg4 {[%clk 0:02:50]} 6. Be2 {[%clk 0:02:46]}  Bxf3 {[%clk 0:02:49]} 7. Bxf3 {[%clk 0:02:46]}  e6 {[%clk 0:02:49]} 8. O-O {[%clk 0:02:46]}  Nf6 {[%clk 0:02:49]} 9. Qc2 {[%clk 0:02:46]}  Be7 {[%clk 0:02:48]} 10. d3 {[%clk 0:02:39]}  O-O {[%clk 0:02:47]} 11. Nd2 {[%clk 0:02:39]}  Nbd7 {[%clk 0:02:46]} 12. e4 {[%clk 0:02:36]}  Qb8 {[%clk 0:02:42]} 13. Rfe1 {[%clk 0:02:31]}  Bd6 {[%clk 0:02:40]} 14. g3 {[%clk 0:02:30]}  Rc8 {[%clk 0:02:37]} 15. Bg2 {[%clk 0:02:28]}  a5 {[%clk 0:02:28]} 16. Rab1 {[%clk 0:02:26]}  a4 {[%clk 0:02:27]} 17. Ba1 {[%clk 0:02:09]}  Bb4 {[%clk 0:02:04]} 18. Bc3 {[%clk 0:01:55]}  Bf8 {[%clk 0:01:59]} 19. f4 {[%clk 0:01:42]}  Qa7+ {[%clk 0:01:48]} 20. Kh1 {[%clk 0:01:32]}  Ng4 {[%clk 0:01:47]} 21. h3 {[%clk 0:01:30]}  Ne3 {[%clk 0:01:44]} 22. Qc1 {[%clk 0:01:23]}  Nxg2 {[%clk 0:01:38]} 23. Kxg2 {[%clk 0:01:24]}  d4 {[%clk 0:01:38]} 24. Bb2 {[%clk 0:01:16]}  a3 {[%clk 0:01:37]} 25. Ba1 {[%clk 0:01:15]}  Bb4 {[%clk 0:01:28]} 26. Re2 {[%clk 0:01:12]}  Bxd2 {[%clk 0:01:19]} 27. Rxd2 {[%clk 0:01:11]}  c5 {[%clk 0:01:18]} 28. cxb5 {[%clk 0:01:08]}  Qb7 {[%clk 0:01:17]} 29. b4 {[%clk 0:01:00]}  f5 {[%clk 0:01:03]} 30. Qe1 {[%clk 0:00:48]}  Nf6 {[%clk 0:01:00]} 31. Re2 {[%clk 0:00:34]}  Qxb5 {[%clk 0:00:59]} 32. bxc5 {[%clk 0:00:27]}  Qxc5 {[%clk 0:00:58]} 33. exf5 {[%clk 0:00:18]}  Qd5+ {[%clk 0:00:54]} 34. Kh2 {[%clk 0:00:17]}  exf5 {[%clk 0:00:53]} 35. Qb4 {[%clk 0:00:13]}  Qf3 {[%clk 0:00:51]} 36. Rbe1 {[%clk 0:00:12]}  Nh5 {[%clk 0:00:33]} 37. Rg2 {[%clk 0:00:08]}  Qxd3 {[%clk 0:00:30]} 38. Qxd4 {[%clk 0:00:07]}  Qxd4 {[%clk 0:00:24]} 39. Bxd4 {[%clk 0:00:08]}  Ra4 {[%clk 0:00:19]} 40. Be5 {[%clk 0:00:08]}  Rac4 {[%clk 0:00:19]} 41. Rf2 {[%clk 0:00:06]}  Kf7 {[%clk 0:00:18]} 42. Rfe2 {[%clk 0:00:04]}  g6 {[%clk 0:00:18]} 43. Ba1 {[%clk 0:00:02]}  Rc2 {[%clk 0:00:18]} 44. Kg2 {[%clk 0:00:01]}  Rxe2+ {[%clk 0:00:18]} 45. Rxe2 {[%clk 0:00:02]}  Rc1 {[%clk 0:00:18]} 46. Be5 {[%clk 0:00:03]}  Ra1 {[%clk 0:00:17]} 47. Bxa1 {[%clk 0:00:02]}  Nf6 {[%clk 0:00:16]} 48. Bxf6 {[%clk 0:00:02]}  Kxf6 {[%clk 0:00:17]} 49. Re3 {[%clk 0:00:02]}  g5 {[%clk 0:00:17]} 50. Rxa3 {[%clk 0:00:03]}  gxf4 {[%clk 0:00:17]} 51. gxf4 {[%clk 0:00:04]}  Kg6 {[%clk 0:00:17]} 52. Kf3 {[%clk 0:00:05]}  Kh5 {[%clk 0:00:18]} 53. Ra5 {[%clk 0:00:05]}  h6 {[%clk 0:00:18]} 54. Rxf5+ {[%clk 0:00:05]}  Kh4 {[%clk 0:00:19]} 55. Re5 {[%clk 0:00:06]}  h5 {[%clk 0:00:20]} 56. Rd5 {[%clk 0:00:06]}  Kxh3 {[%clk 0:00:20]} 57. Rxh5# {[%clk 0:00:07]} 1-0


[Site "https://www.chess.com"]

[Event "Titled Tuesday Blitz May 9 Late 2023"]
[White "Martinez, Shawn"]
[Black "Moore, Nicholas"]
[WhiteFideId "2039770"]
[BlackFideId "4303709"]
[WhiteElo "2174"]
[BlackElo "2501"]
[Result "1-0"]
[Round "05"]
[TimeControl "180+2"]
[Date "2023.05.09"]
[WhiteClock "0:00:23"]
[BlackClock "0:00:03"]

1. e4 {[%clk 0:02:55]}  c5 {[%clk 0:03:00]} 2. Nc3 {[%clk 0:02:51]}  e6 {[%clk 0:03:00]} 3. g3 {[%clk 0:02:49]}  d5 {[%clk 0:03:00]} 4. Bg2 {[%clk 0:02:50]}  d4 {[%clk 0:02:59]} 5. Nce2 {[%clk 0:02:48]}  d3 {[%clk 0:03:00]} 6. cxd3 {[%clk 0:02:41]}  Nc6 {[%clk 0:03:00]} 7. Nf3 {[%clk 0:02:40]}  g6 {[%clk 0:02:59]} 8. O-O {[%clk 0:02:36]}  Bg7 {[%clk 0:03:00]} 9. d4 {[%clk 0:02:29]}  cxd4 {[%clk 0:02:52]} 10. d3 {[%clk 0:02:28]}  Nge7 {[%clk 0:02:51]} 11. a3 {[%clk 0:02:27]}  a5 {[%clk 0:02:45]} 12. Rb1 {[%clk 0:02:26]}  O-O {[%clk 0:02:39]} 13. Bd2 {[%clk 0:02:24]}  Qb6 {[%clk 0:02:01]} 14. b4 {[%clk 0:02:07]}  axb4 {[%clk 0:01:21]} 15. axb4 {[%clk 0:02:06]}  Rd8 {[%clk 0:01:19]} 16. b5 {[%clk 0:01:54]}  Nb8 {[%clk 0:01:08]} 17. Qb3 {[%clk 0:01:45]}  Nd7 {[%clk 0:00:52]} 18. Rfc1 {[%clk 0:01:33]}  e5 {[%clk 0:00:33]} 19. Bb4 {[%clk 0:01:20]}  Re8 {[%clk 0:00:33]} 20. Bh3 {[%clk 0:01:05]}  Qxb5 {[%clk 0:00:25]} 21. Ng5 {[%clk 0:00:59]}  h6 {[%clk 0:00:06]} 22. Qxf7+ {[%clk 0:00:56]}  Kh8 {[%clk 0:00:06]} 23. Qxe8+ {[%clk 0:00:56]}  Ng8 {[%clk 0:00:06]} 24. Nf7+ {[%clk 0:00:45]}  Kh7 {[%clk 0:00:07]} 25. Nd6 {[%clk 0:00:40]}  Qxd3 {[%clk 0:00:06]} 26. Nxc8 {[%clk 0:00:37]}  Ndf6 {[%clk 0:00:05]} 27. Qf7 {[%clk 0:00:30]}  Qxe2 {[%clk 0:00:05]} 28. Bf8 {[%clk 0:00:28]}  Qxf2+ {[%clk 0:00:02]} 29. Kxf2 {[%clk 0:00:24]}  Nxe4+ {[%clk 0:00:03]} 30. Kg1 {[%clk 0:00:24]}  Ng5 {[%clk 0:00:03]} 31. Qxg7# {[%clk 0:00:23]} 1-0


[Site "https://www.chess.com"]

[Event "Titled Tuesday Blitz May 9 Late 2023"]
[White "Benaddi, Mouhcine"]
[Black "Sowa, Ryan"]
[WhiteFideId "9001050"]
[BlackFideId "30901693"]
[WhiteElo "2036"]
[BlackElo "2645"]
[Result "0-1"]
[Round "05"]
[TimeControl "180+2"]
[Date "2023.05.09"]
[WhiteClock "0:00:51"]
[BlackClock "0:01:29"]

1. Nf3 {[%clk 0:03:00]}  b6 {[%clk 0:02:53]} 2. g3 {[%clk 0:03:01]}  Bb7 {[%clk 0:02:49]} 3. Bg2 {[%clk 0:03:01]}  Nf6 {[%clk 0:02:49]} 4. O-O {[%clk 0:03:02]}  g6 {[%clk 0:02:50]} 5. c4 {[%clk 0:03:02]}  Bg7 {[%clk 0:02:49]} 6. Nc3 {[%clk 0:03:03]}  Ne4 {[%clk 0:02:50]} 7. Qc2 {[%clk 0:03:01]}  Nxc3 {[%clk 0:02:50]} 8. dxc3 {[%clk 0:03:02]}  O-O {[%clk 0:02:50]} 9. Bf4 {[%clk 0:02:56]}  c5 {[%clk 0:02:49]} 10. Rad1 {[%clk 0:02:53]}  d6 {[%clk 0:02:49]} 11. Qd2 {[%clk 0:02:51]}  Nd7 {[%clk 0:02:49]} 12. Bh6 {[%clk 0:02:50]}  Qc7 {[%clk 0:02:44]} 13. Bxg7 {[%clk 0:02:50]}  Kxg7 {[%clk 0:02:44]} 14. Qg5 {[%clk 0:02:50]}  Nf6 {[%clk 0:02:37]} 15. Qh4 {[%clk 0:02:38]}  h6 {[%clk 0:02:30]} 16. Ne1 {[%clk 0:02:23]}  g5 {[%clk 0:02:24]} 17. Qh3 {[%clk 0:02:20]}  Bc8 {[%clk 0:02:23]} 18. g4 {[%clk 0:02:12]}  Bxg4 {[%clk 0:02:24]} 19. Qe3 {[%clk 0:02:05]}  Rac8 {[%clk 0:02:18]} 20. f4 {[%clk 0:02:05]}  Rg8 {[%clk 0:02:06]} 21. fxg5 {[%clk 0:02:04]}  hxg5 {[%clk 0:02:07]} 22. Nf3 {[%clk 0:01:26]}  Bxf3 {[%clk 0:01:51]} 23. Bxf3 {[%clk 0:01:24]}  Kf8 {[%clk 0:01:48]} 24. Kh1 {[%clk 0:01:23]}  g4 {[%clk 0:01:34]} 25. Bg2 {[%clk 0:01:19]}  Rg6 {[%clk 0:01:33]} 26. Rf4 {[%clk 0:01:09]}  Kg7 {[%clk 0:01:32]} 27. Rdf1 {[%clk 0:01:09]}  Rh8 {[%clk 0:01:31]} 28. Be4 {[%clk 0:01:05]}  Rgh6 {[%clk 0:01:31]} 29. Bf5 {[%clk 0:00:51]}  Rxh2+ {[%clk 0:01:29]} 0-1


[Site "https://www.chess.com"]

[Event "Titled Tuesday Blitz May 9 Late 2023"]
[White "FuenfgegenWilly"]
[Black "Mikhalsky, Vladimir"]
[BlackFideId "14144352"]
[WhiteElo "2326"]
[BlackElo "2236"]
[Result "0-1"]
[Round "05"]
[TimeControl "180+2"]
[Date "2023.05.09"]
[WhiteClock "0:00:35"]
[BlackClock "0:01:00"]

1. Nf3 {[%clk 0:03:00]}  c5 {[%clk 0:02:55]} 2. c4 {[%clk 0:02:59]}  Nf6 {[%clk 0:02:54]} 3. b3 {[%clk 0:02:59]}  d5 {[%clk 0:02:54]} 4. cxd5 {[%clk 0:02:59]}  Nxd5 {[%clk 0:02:52]} 5. Bb2 {[%clk 0:02:59]}  Nc6 {[%clk 0:02:52]} 6. g3 {[%clk 0:02:57]}  f6 {[%clk 0:02:50]} 7. Bg2 {[%clk 0:02:51]}  e5 {[%clk 0:02:50]} 8. O-O {[%clk 0:02:40]}  Be6 {[%clk 0:02:50]} 9. d3 {[%clk 0:02:30]}  Qd7 {[%clk 0:02:49]} 10. Nbd2 {[%clk 0:02:28]}  Be7 {[%clk 0:02:45]} 11. e3 {[%clk 0:02:28]}  Ndb4 {[%clk 0:02:41]} 12. d4 {[%clk 0:02:23]}  cxd4 {[%clk 0:02:41]} 13. exd4 {[%clk 0:02:24]}  Nd3 {[%clk 0:02:36]} 14. Qc2 {[%clk 0:02:19]}  Nxb2 {[%clk 0:02:31]} 15. Qxb2 {[%clk 0:02:20]}  exd4 {[%clk 0:02:27]} 16. Rfe1 {[%clk 0:02:18]}  O-O {[%clk 0:02:25]} 17. Rad1 {[%clk 0:02:10]}  Bb4 {[%clk 0:02:24]} 18. a3 {[%clk 0:02:05]}  Bc3 {[%clk 0:02:23]} 19. Qb1 {[%clk 0:02:03]}  Bf5 {[%clk 0:02:14]} 20. Qa2 {[%clk 0:02:00]}  Rfe8 {[%clk 0:02:02]} 21. Rxe8+ {[%clk 0:02:00]}  Rxe8 {[%clk 0:02:01]} 22. Nc4 {[%clk 0:02:01]}  Bg4 {[%clk 0:01:52]} 23. b4 {[%clk 0:01:54]}  Kh8 {[%clk 0:01:51]} 24. Qb3 {[%clk 0:01:39]}  Qf7 {[%clk 0:01:50]} 25. Na5 {[%clk 0:01:20]}  Qxb3 {[%clk 0:01:40]} 26. Nxb3 {[%clk 0:01:21]}  Ne5 {[%clk 0:01:37]} 27. Nxe5 {[%clk 0:00:52]}  Bxd1 {[%clk 0:01:35]} 28. Nf7+ {[%clk 0:00:53]}  Kg8 {[%clk 0:01:35]} 29. Bd5 {[%clk 0:00:54]}  Bxb3 {[%clk 0:01:17]} 30. Bxb3 {[%clk 0:00:55]}  Re1+ {[%clk 0:01:12]} 31. Kg2 {[%clk 0:00:55]}  Kf8 {[%clk 0:01:09]} 32. Nd6 {[%clk 0:00:53]}  d3 {[%clk 0:01:08]} 33. Nb5 {[%clk 0:00:48]}  Bb2 {[%clk 0:01:01]} 34. a4 {[%clk 0:00:36]}  d2 {[%clk 0:01:01]} 35. Nc3 {[%clk 0:00:35]}  Bxc3 {[%clk 0:01:00]} 0-1


[Site "https://www.chess.com"]

[Event "Titled Tuesday Blitz May 9 Late 2023"]
[White "Vega Gutierrez, Sabrina"]
[Black "De Souza, Cristiano Gomes"]
[WhiteFideId "2219026"]
[BlackFideId "2151758"]
[WhiteElo "2209"]
[BlackElo "2068"]
[Result "1-0"]
[Round "05"]
[TimeControl "180+2"]
[Date "2023.05.09"]
[WhiteClock "0:02:33"]
[BlackClock "0:02:26"]

1. e4 {[%clk 0:03:00]}  c5 {[%clk 0:02:59]} 2. Nf3 {[%clk 0:02:57]}  d6 {[%clk 0:02:59]} 3. d4 {[%clk 0:02:58]}  cxd4 {[%clk 0:02:59]} 4. Qxd4 {[%clk 0:02:55]}  Nf6 {[%clk 0:02:57]} 5. Nc3 {[%clk 0:02:54]}  Nc6 {[%clk 0:02:58]} 6. Bb5 {[%clk 0:02:54]}  Bd7 {[%clk 0:02:58]} 7. Bxc6 {[%clk 0:02:54]}  Bxc6 {[%clk 0:02:58]} 8. Bg5 {[%clk 0:02:55]}  e6 {[%clk 0:02:58]} 9. O-O-O {[%clk 0:02:55]}  Be7 {[%clk 0:02:58]} 10. Qd3 {[%clk 0:02:55]}  Qa5 {[%clk 0:02:56]} 11. h4 {[%clk 0:02:51]}  h6 {[%clk 0:02:56]} 12. Bd2 {[%clk 0:02:51]}  Qc7 {[%clk 0:02:54]} 13. Nd4 {[%clk 0:02:51]}  O-O-O {[%clk 0:02:48]} 14. Ndb5 {[%clk 0:02:32]}  Bxb5 {[%clk 0:02:35]} 15. Nxb5 {[%clk 0:02:33]}  Qa5 {[%clk 0:02:26]} 16. Bxa5 {[%clk 0:02:33]} 1-0


[Site "https://www.chess.com"]

[Event "Titled Tuesday Blitz May 9 Late 2023"]
[White "Villuendas Valero, Adrian"]
[Black "mjelcic"]
[WhiteFideId "2262460"]
[WhiteElo "2328"]
[BlackElo "2227"]
[Result "1-0"]
[Round "05"]
[TimeControl "180+2"]
[Date "2023.05.09"]
[WhiteClock "0:00:44"]
[BlackClock "0:00:29"]

1. d4 {[%clk 0:03:00]}  d5 {[%clk 0:02:59]} 2. Bg5 {[%clk 0:02:59]}  c6 {[%clk 0:03:00]} 3. e3 {[%clk 0:02:57]}  Nf6 {[%clk 0:02:56]} 4. Bxf6 {[%clk 0:02:49]}  exf6 {[%clk 0:02:55]} 5. Nd2 {[%clk 0:02:49]}  Bf5 {[%clk 0:02:54]} 6. c4 {[%clk 0:02:44]}  Nd7 {[%clk 0:02:48]} 7. cxd5 {[%clk 0:02:32]}  cxd5 {[%clk 0:02:47]} 8. Ne2 {[%clk 0:02:23]}  Rc8 {[%clk 0:02:45]} 9. Nc3 {[%clk 0:02:23]}  Qa5 {[%clk 0:02:31]} 10. a3 {[%clk 0:02:01]}  Qb6 {[%clk 0:02:00]} 11. Qb3 {[%clk 0:01:54]}  Qxb3 {[%clk 0:01:46]} 12. Nxb3 {[%clk 0:01:54]}  Nb6 {[%clk 0:01:45]} 13. Na5 {[%clk 0:01:31]}  Rc7 {[%clk 0:01:39]} 14. Be2 {[%clk 0:01:17]}  Bd6 {[%clk 0:01:39]} 15. Bf3 {[%clk 0:01:14]}  O-O {[%clk 0:01:08]} 16. Nb5 {[%clk 0:01:09]}  Rd7 {[%clk 0:01:03]} 17. Nxd6 {[%clk 0:01:09]}  Rxd6 {[%clk 0:01:04]} 18. Nxb7 {[%clk 0:01:09]}  Rc6 {[%clk 0:01:04]} 19. Nc5 {[%clk 0:01:09]}  Be4 {[%clk 0:00:54]} 20. Nxe4 {[%clk 0:01:06]}  dxe4 {[%clk 0:00:55]} 21. Bxe4 {[%clk 0:01:06]}  Re6 {[%clk 0:00:51]} 22. Bd3 {[%clk 0:01:02]}  Na4 {[%clk 0:00:47]} 23. b3 {[%clk 0:00:58]}  Nb6 {[%clk 0:00:39]} 24. Kd2 {[%clk 0:00:54]}  g6 {[%clk 0:00:37]} 25. Rhc1 {[%clk 0:00:53]}  f5 {[%clk 0:00:38]} 26. g3 {[%clk 0:00:51]}  Rc8 {[%clk 0:00:34]} 27. Rxc8+ {[%clk 0:00:51]}  Nxc8 {[%clk 0:00:35]} 28. Rc1 {[%clk 0:00:51]}  Ne7 {[%clk 0:00:35]} 29. Rc7 {[%clk 0:00:47]}  Nc6 {[%clk 0:00:29]} 30. d5 {[%clk 0:00:44]} 1-0


[Site "https://www.chess.com"]

[Event "Titled Tuesday Blitz May 9 Late 2023"]
[White "lluiss"]
[Black "merinasian"]
[WhiteElo "2294"]
[BlackElo "2429"]
[Result "0-1"]
[Round "05"]
[TimeControl "180+2"]
[Date "2023.05.09"]
[WhiteClock "0:00:05"]
[BlackClock "0:00:42"]

1. Nf3 {[%clk 0:03:00]}  Nf6 {[%clk 0:02:59]} 2. c4 {[%clk 0:02:59]}  e6 {[%clk 0:02:58]} 3. b3 {[%clk 0:02:59]}  b6 {[%clk 0:02:56]} 4. g3 {[%clk 0:02:58]}  Bb7 {[%clk 0:02:57]} 5. Bg2 {[%clk 0:02:58]}  g6 {[%clk 0:02:54]} 6. Bb2 {[%clk 0:02:57]}  Bg7 {[%clk 0:02:55]} 7. O-O {[%clk 0:02:57]}  O-O {[%clk 0:02:55]} 8. d3 {[%clk 0:02:57]}  d6 {[%clk 0:02:54]} 9. e4 {[%clk 0:02:57]}  Nbd7 {[%clk 0:02:55]} 10. Re1 {[%clk 0:02:55]}  e5 {[%clk 0:02:53]} 11. Nc3 {[%clk 0:02:49]}  c5 {[%clk 0:02:43]} 12. a3 {[%clk 0:02:35]}  Ne8 {[%clk 0:02:32]} 13. b4 {[%clk 0:02:24]}  f5 {[%clk 0:02:32]} 14. bxc5 {[%clk 0:02:21]}  Nxc5 {[%clk 0:02:30]} 15. exf5 {[%clk 0:02:14]}  gxf5 {[%clk 0:02:30]} 16. d4 {[%clk 0:02:03]}  exd4 {[%clk 0:02:07]} 17. Nxd4 {[%clk 0:02:02]}  Bxg2 {[%clk 0:02:07]} 18. Kxg2 {[%clk 0:02:02]}  f4 {[%clk 0:01:57]} 19. Nd5 {[%clk 0:01:58]}  f3+ {[%clk 0:01:52]} 20. Kh1 {[%clk 0:01:34]}  Qd7 {[%clk 0:01:50]} 21. Re3 {[%clk 0:00:57]}  Qg4 {[%clk 0:01:27]} 22. Nf4 {[%clk 0:00:55]}  Rxf4 {[%clk 0:01:23]} 23. Nxf3 {[%clk 0:00:36]}  Rf7 {[%clk 0:01:14]} 24. Bxg7 {[%clk 0:00:29]}  Nxg7 {[%clk 0:01:13]} 25. Qd5 {[%clk 0:00:29]}  Rf8 {[%clk 0:01:05]} 26. Ng5 {[%clk 0:00:29]}  Qf5 {[%clk 0:00:53]} 27. Nxf7 {[%clk 0:00:25]}  Qxd5+ {[%clk 0:00:52]} 28. cxd5 {[%clk 0:00:26]}  Kxf7 {[%clk 0:00:51]} 29. Rae1 {[%clk 0:00:24]}  Nf5 {[%clk 0:00:51]} 30. Rf3 {[%clk 0:00:17]}  Kg7 {[%clk 0:00:44]} 31. Rf4 {[%clk 0:00:13]}  Nd3 {[%clk 0:00:42]} 32. Rg4+ {[%clk 0:00:12]}  Kh8 {[%clk 0:00:42]} 33. Re6 {[%clk 0:00:05]}  Nxf2+ {[%clk 0:00:42]} 0-1


[Site "https://www.chess.com"]